bitfinex/quotes_SOLUSD_20240729
["timestamp","ask_amount","ask_price","bid_price","bid_amount"]
[1722261069300,50.2121,191.86,191.85,0.7862212]
[1722261069815,70.2121,191.86,191.85,0.7862212]
[1722261070986,20.0,191.86,191.85,0.7862212]
[1722261071388,13.1949,191.94,191.85,0.7862212]
[1722261071389,26.13,191.94,191.85,0.7862212]
[1722261071598,5.2112,191.9,191.85,0.7862212]
[1722261071912,15.68,191.93,191.85,0.7862212]
[1722261072106,5.2106,191.92,191.85,0.7862212]
[1722261072419,15.68,191.9,191.85,0.7862212]
[1722261072790,5.2121,191.86,191.85,0.7862212]
[1722261072993,25.2121,191.86,191.85,0.7862212]
[1722261073311,70.2121,191.86,191.85,0.7862212]
[1722261074496,20.0,191.86,191.85,0.7862212]
[1722261074700,25.2121,191.86,191.85,0.7862212]
[1722261075201,20.0,191.86,191.85,0.7862212]
[1722261075402,25.2121,191.86,191.85,0.7862212]
[1722261075814,70.2121,191.86,191.85,0.7862212]
[1722261078307,25.2121,191.86,191.85,0.7862212]
[1722261078502,13.0248,191.95,191.85,0.7862212]
[1722261078794,26.13,191.94,191.85,0.7862212]
[1722261078999,41.81,191.91,191.85,0.7862212]
[1722261079197,5.2121,191.86,191.85,0.7862212]
[1722261079712,39.7273,191.86,191.85,0.7862212]
[1722261079941,91.697,191.86,191.85,0.7862212]
[1722261080112,92.0741,191.86,191.85,0.7862212]
[1722261080719,76.3941,191.86,191.85,0.7862212]
[1722261081117,70.2121,191.86,191.85,0.7862212]
[1722261083027,15.68,191.9,191.85,0.7862212]
[1722261083028,5.2118,191.88,191.85,0.7862212]
[1722261083234,5.2119,191.87,191.85,0.7862212]
[1722261083521,5.2113,191.89,191.85,0.7862212]
[1722261083734,6.0322,191.97,191.86,1.04238592]
[1722261083931,261.88353395,192.01,191.86,1.04238592]
[1722261083932,5.2096,191.96,191.86,1.04238592]
[1722261084125,39.1512,192.0,191.86,1.04238592]
[1722261084331,5.21,191.94,191.86,1.04238592]
[1722261084516,5.2102,191.93,191.86,1.04238592]
[1722261084835,5.2099,191.94,191.86,1.04238592]
[1722261085031,5.2096,191.96,191.87,0.17]
[1722261085222,5.2096,191.96,191.87,1.2120807]
[1722261085525,5.2091,191.97,191.89,22.8258]
[1722261086129,5.2101,191.94,191.89,16.5272]
[1722261086311,5.2096,191.96,191.89,16.5272]
[1722261086516,259.8,192.01,191.89,16.5272]
[1722261086727,5.2091,191.97,191.89,16.5272]
[1722261086933,32.42259005,192.03,191.89,16.5272]
[1722261086934,6.0322,192.08,191.9,1.38197518]
[1722261087111,45.1781,192.08,191.9,46.38197518]
[1722261087313,5.2083,192.0,191.9,0.34]
[1722261087512,5.208,192.02,191.91,5.2107]
[1722261087731,5.208,192.01,191.92,1.3817854]
[1722261087941,5.2084,192.0,191.93,1.04179102]
[1722261088838,15.68,192.04,191.89,21.7383]
[1722261089016,5.2083,192.0,191.9,5.551]
[1722261089419,60.68,192.03,191.91,5.2107]
[1722261089623,5.2083,192.01,191.91,5.2107]
[1722261089831,5.2086,191.99,191.9,5.5509]
[1722261090035,5.2089,191.98,191.9,0.17]
[1722261090218,15.68,191.99,191.89,16.5272]
[1722261090536,5.2103,191.93,191.89,16.5272]
[1722261090743,80.68,191.98,191.89,16.5272]
[1722261090744,5.2097,191.95,191.89,16.5272]
[1722261090916,60.68,191.98,191.89,16.5272]
[1722261091119,20.0,191.97,191.89,16.5272]
[1722261091644,35.68,191.97,191.89,16.5272]
[1722261091840,5.2101,191.94,191.89,16.5272]
[1722261092020,5.2097,191.95,191.89,16.5272]
[1722261092221,20.0,191.94,191.89,16.5272]
[1722261092624,45.0,191.93,191.89,16.5272]
[1722261092933,5.209,191.98,191.89,16.5272]
[1722261093133,41.81,192.02,191.89,16.5272]
[1722261093343,26.13,192.05,191.9,1.041882]
[1722261093635,26.13,192.05,191.92,5.2104]
[1722261093823,26.13,192.05,191.9,5.2108]
[1722261094023,26.13,192.05,191.9,5.3808]
[1722261094218,15.68,192.04,191.9,5.3808]
[1722261094649,41.81,192.02,191.9,0.17]
[1722261094937,5.2093,191.97,191.9,0.34]
[1722261095151,45.0,192.01,191.9,0.34]
[1722261095446,5.2091,191.97,191.89,16.5272]
[1722261095955,5.2096,191.96,191.89,16.5272]
[1722261096238,5.2091,191.97,191.89,16.5272]
[1722261096458,45.0,191.96,191.89,16.5272]
[1722261096747,50.2095,191.96,191.89,16.5272]
[1722261096945,45.0,191.96,191.89,16.5272]
[1722261097321,5.2088,191.99,191.89,21.7384]
[1722261097534,20.0,191.98,191.89,21.7384]
[1722261097746,45.0,191.97,191.89,21.7384]
[1722261098240,20.0,191.96,191.89,16.5272]
[1722261098548,5.21,191.94,191.89,16.5272]
[1722261098750,5.2103,191.93,191.85,23.6862212]
[1722261099043,20.0,191.96,191.85,23.6862212]
[1722261099044,5.2105,191.92,191.85,23.6862212]
[1722261099456,50.2108,191.91,191.85,23.6862212]
[1722261099625,74.8336,191.96,191.85,23.6862212]
[1722261099830,60.68,191.95,191.85,23.6862212]
[1722261100139,60.68,191.95,191.85,17.3876212]
[1722261100140,15.68,191.92,191.85,17.3876212]
[1722261100347,5.2116,191.88,191.85,0.7862212]
[1722261100635,5.2113,191.89,191.85,0.7862212]
[1722261100843,65.0,191.88,191.85,0.7862212]
[1722261101545,70.2117,191.88,191.85,0.7862212]
[1722261101856,20.0,191.88,191.85,0.7862212]
[1722261102157,46.13,191.9,191.85,0.7862212]
[1722261102467,45.0,191.89,191.85,0.7862212]
[1722261102661,5.2121,191.86,191.85,0.7862212]
[1722261102839,70.2121,191.86,191.85,0.7862212]
[1722261103756,85.8921,191.86,191.85,0.7862212]
[1722261104939,86.0621,191.86,191.85,0.7862212]
[1722261105143,86.2321,191.86,191.85,0.7862212]
[1722261107859,87.90130677,191.86,191.85,0.7862212]
[1722261108954,87.56130677,191.86,191.85,0.7862212]
[1722261110137,46.66920677,191.86,191.85,0.7862212]
[1722261110338,1.66920677,191.86,191.85,0.7862212]
[1722261110538,5.2121,191.86,191.85,0.7862212]
[1722261111663,25.2121,191.86,191.85,0.7862212]
[1722261111857,70.2121,191.86,191.85,0.7862212]
[1722261112063,25.2121,191.86,191.85,0.7862212]
[1722261112859,85.8921,191.86,191.85,0.7862212]
[1722261114240,70.2121,191.86,191.85,0.7862212]
[1722261114642,25.2121,191.86,191.85,0.7862212]
[1722261115064,70.2121,191.86,191.85,0.7862212]
[1722261116246,20.0,191.86,191.85,0.7862212]
[1722261116558,5.2114,191.89,191.85,0.7862212]
[1722261116774,5.2118,191.87,191.85,0.7862212]
[1722261117061,5.2121,191.86,191.85,0.7862212]
[1722261118151,70.2121,191.86,191.85,0.7862212]
[1722261118347,85.8921,191.86,191.85,0.7862212]
[1722261118954,70.2121,191.86,191.85,0.7862212]
[1722261119349,85.8921,191.86,191.85,0.7862212]
[1722261120965,70.2121,191.86,191.85,0.7862212]
[1722261121943,20.0,191.86,191.85,0.7862212]
[1722261122542,15.68,191.94,191.85,0.7862212]
[1722261122766,5.211,191.9,191.85,0.7862212]
[1722261122960,15.68,191.94,191.85,0.7862212]
[1722261123163,5.2108,191.91,191.85,0.7862212]
[1722261124259,5.2111,191.9,191.85,0.7862212]
[1722261124465,5.2115,191.89,191.85,0.7862212]
[1722261124971,15.68,191.92,191.85,0.7862212]
[1722261125271,5.2121,191.86,191.85,0.7862212]
[1722261125566,50.2121,191.86,191.85,0.7862212]
[1722261125776,70.2121,191.86,191.85,0.7862212]
[1722261128170,85.8921,191.86,191.85,0.7862212]
[1722261128671,70.2121,191.86,191.85,0.7862212]
[1722261128878,86.2321,191.86,191.85,0.7862212]
[1722261131171,85.8921,191.86,191.85,0.7862212]
[1722261131383,25.18454208,191.86,191.85,0.7862212]
[1722261132775,70.18454208,191.86,191.85,0.7862212]
[1722261133189,98.89484208,191.86,191.85,0.7862212]
[1722261133557,70.18454208,191.86,191.85,0.7862212]
[1722261134984,112.02454208,191.86,191.85,0.7862212]
[1722261135656,85.86454208,191.86,191.85,0.7862212]
[1722261136053,5.2118,191.88,191.85,0.7862212]
[1722261136353,26.16,191.95,191.85,0.7862212]
[1722261136559,5.2112,191.9,191.85,0.7862212]
[1722261136763,13.0249,191.94,191.85,0.7862212]
[1722261137091,5.2112,191.9,191.85,0.7862212]
[1722261137572,39.1843,191.95,191.86,1.04236095]
[1722261137958,5.2105,191.92,191.85,1.82847488]
[1722261138180,5.2105,191.92,191.86,1.04225234]
[1722261138473,5.2101,191.94,191.86,1.04225234]
[1722261138780,5.2099,191.95,191.86,1.04225234]
[1722261138962,5.2099,191.95,191.86,6.25425234]
[1722261139271,10.4238,191.98,191.88,22.4797]
[1722261139474,10.4238,191.98,191.89,1.38197063]
[1722261139664,10.4238,191.98,191.9,1.04197131]
[1722261139665,5.2092,191.97,191.9,1.04197131]
[1722261139867,5.215,191.98,191.88,22.4797]
[1722261140070,5.2097,191.95,191.88,22.4797]
[1722261140277,5.2099,191.94,191.88,22.4797]
[1722261140580,31.375,191.98,191.88,22.4797]
[1722261140769,5.2102,191.93,191.88,22.4797]
[1722261140955,5.2099,191.94,191.88,22.4797]
[1722261141156,60.68,191.97,191.88,22.4797]
[1722261141362,20.0,191.96,191.88,22.4797]
[1722261141561,5.2106,191.92,191.88,22.4797]
[1722261142455,20.0,191.96,191.88,22.4797]
[1722261142656,45.0,191.95,191.88,22.4797]
[1722261142870,20.0,191.94,191.88,22.4797]
[1722261143077,45.0,191.95,191.88,22.4797]
[1722261143559,20.0,191.96,191.88,22.4797]
[1722261143864,25.2092,191.97,191.88,22.4797]
[1722261144064,5.2092,191.97,191.88,22.4797]
[1722261144258,5.2092,191.97,191.88,27.6911]
[1722261144464,5.2092,191.97,191.89,0.34]
[1722261144679,10.4239,191.98,191.89,0.34]
[1722261145185,5.215,191.98,191.9,5.2109]
[1722261145391,5.215,191.98,191.91,1.04191752]
[1722261145885,5.215,191.98,191.89,0.34]
[1722261146085,5.2094,191.96,191.89,0.34]
[1722261146395,5.2094,191.96,191.88,22.4797]
[1722261146396,5.215,191.98,191.88,22.8197]
[1722261146583,5.215,192.0,191.89,1.38206865]
[1722261146768,5.215,191.98,191.89,0.34]
[1722261146958,5.2096,191.96,191.88,22.4797]
[1722261147282,5.211,191.9,191.88,15.8869]
[1722261147965,5.2111,191.9,191.88,15.8869]
[1722261148164,15.68,191.94,191.85,0.7862212]
[1722261148371,80.68,191.93,191.85,0.7862212]
[1722261148584,5.2108,191.91,191.85,0.7862212]
[1722261148896,45.0,191.93,191.86,1.04235842]
[1722261149102,45.0,191.93,191.85,5.9985212]
[1722261149103,20.0,191.92,191.87,1.0423077]
[1722261149304,20.0,191.92,191.85,0.7862212]
[1722261149796,5.2111,191.9,191.85,0.7862212]
[1722261150101,20.0,191.92,191.85,0.7862212]
[1722261150400,5.2107,191.91,191.85,0.7862212]
[1722261150772,5.2111,191.9,191.85,0.7862212]
[1722261151186,5.2108,191.91,191.85,0.7862212]
[1722261151365,45.0,191.9,191.85,0.7862212]
[1722261151565,60.68,191.9,191.85,0.7862212]
[1722261151798,5.2121,191.86,191.85,0.7862212]
[1722261151977,50.2121,191.86,191.85,0.7862212]
[1722261152669,20.0,191.89,191.85,0.7862212]
[1722261152865,25.2111,191.9,191.85,0.7862212]
[1722261153081,20.0,191.9,191.85,0.7862212]
[1722261153278,20.0,191.91,191.85,0.7862212]
[1722261153680,19.4567,191.99,191.85,0.7862212]
[1722261153985,5.215,191.98,191.87,15.441]
[1722261154585,10.424,191.98,191.89,6.5207]
[1722261154772,5.2092,191.97,191.89,6.5207]
[1722261154974,5.215,191.98,191.89,6.5207]
[1722261155186,5.215,191.98,191.9,0.34]
[1722261155566,5.215,191.98,191.92,5.2102]
[1722261155766,5.215,191.98,191.93,1.04181015]
[1722261155972,5.215,191.99,191.94,15.0758]
[1722261156180,5.215,191.99,191.95,1.04180147]
[1722261156688,5.215,191.99,191.94,15.0758]
[1722261157064,5.215,191.98,191.94,15.0758]
[1722261158073,10.4238,191.98,191.94,15.0758]
[1722261158280,5.2091,191.97,191.94,15.0758]
[1722261158473,20.895,192.01,191.94,15.0758]
[1722261158674,5.215,191.98,191.89,6.5207]
[1722261158890,65.0,191.97,191.89,6.5207]
[1722261159073,5.2099,191.94,191.89,6.5207]
[1722261159693,5.2102,191.93,191.89,6.5207]
[1722261160091,5.2111,191.9,191.88,16.5154]
[1722261160392,5.2111,191.9,191.85,7.0649212]
[1722261161276,42.01,191.96,191.85,7.0649212]
[1722261161593,65.0,191.95,191.85,7.0649212]
[1722261161895,65.0,191.95,191.86,1.04219052]
[1722261162079,5.2102,191.93,191.85,7.0649212]
[1722261162470,65.0,191.95,191.85,7.0649212]
[1722261162900,5.2099,191.94,191.85,7.0649212]
[1722261163095,5.2099,191.94,191.86,1.04219089]
[1722261163403,70.2097,191.95,191.86,1.04219089]
[1722261163597,70.2097,191.95,191.86,6.25429089]
[1722261163779,70.2097,191.95,191.86,1.04219089]
[1722261163780,5.21,191.94,191.86,1.04219089]
[1722261164472,5.2102,191.93,191.86,1.04219089]
[1722261164815,5.2102,191.93,191.85,7.0649212]
[1722261165105,65.0,191.95,191.85,7.0649212]
[1722261165277,80.68,191.95,191.85,7.0649212]
[1722261165693,65.0,191.95,191.86,1.04236091]
[1722261165975,65.0,191.95,191.85,7.0649212]
[1722261166497,5.2111,191.9,191.85,7.0649212]
[1722261167197,5.2108,191.91,191.85,7.0649212]
[1722261168275,5.2105,191.92,191.85,7.0649212]
[1722261168475,45.0,191.91,191.85,7.0649212]
[1722261168796,50.2108,191.91,191.85,7.0649212]
[1722261168996,45.0,191.91,191.85,7.0649212]
[1722261170500,5.211,191.9,191.85,7.0649212]
[1722261171090,45.0,191.91,191.85,7.0649212]
[1722261171282,5.2115,191.89,191.85,0.7862212]
[1722261171485,5.2121,191.86,191.85,0.7862212]
[1722261171799,5.2134,191.81,191.73,15.3076]
[1722261171982,5.2132,191.82,191.73,20.5231]
[1722261172184,5.2136,191.81,191.73,15.3076]
[1722261172388,45.0,191.8,191.73,15.3076]
[1722261172596,50.2138,191.8,191.73,15.3076]
[1722261172903,5.2143,191.78,191.73,15.3076]
[1722261173274,20.0,191.86,191.74,1.04294435]
[1722261173275,46.16,191.86,191.74,1.04294435]
[1722261173579,20.0,191.85,191.73,15.3076]
[1722261173782,25.2125,191.85,191.76,5.2148]
[1722261174009,20.0,191.85,191.77,5.5545]
[1722261174510,20.0,191.85,191.78,1.04265025]
[1722261174705,5.2118,191.87,191.78,1.04265025]
[1722261174905,45.0,191.86,191.78,5.2142]
[1722261175286,45.0,191.86,191.79,1.04265034]
[1722261175682,50.2121,191.86,191.79,1.04265034]
[1722261176206,50.2121,191.86,191.77,5.5545]
[1722261176702,5.2124,191.85,191.77,0.34]
[1722261177005,5.2124,191.85,191.77,1.38265136]
[1722261177202,45.0,191.86,191.77,6.59715136]
[1722261177408,50.2121,191.86,191.77,0.34]
[1722261177637,60.68,191.86,191.73,15.3076]
[1722261177914,20.0,191.85,191.74,0.34]
[1722261178098,5.2132,191.82,191.74,1.04278259]
[1722261178281,5.2129,191.83,191.74,5.2153]
[1722261178481,35.68,191.85,191.75,1.04278398]
[1722261178482,20.0,191.85,191.75,1.04278398]
[1722261178711,5.2129,191.83,191.75,1.04278398]
[1722261178888,5.2129,191.83,191.74,5.2153]
[1722261179487,45.0,191.82,191.74,1.04278444]
[1722261179707,86.84,191.82,191.73,15.3076]
[1722261180009,5.2143,191.78,191.73,15.3076]
[1722261180399,41.84,191.81,191.73,15.3076]
[1722261180593,45.0,191.8,191.73,15.3076]
[1722261181110,5.2127,191.84,191.73,15.3076]
[1722261181283,25.2129,191.83,191.73,15.3076]
[1722261181485,20.0,191.83,191.74,0.34]
[1722261181894,26.16,191.88,191.74,0.34]
[1722261181895,20.0,191.84,191.74,0.34]
[1722261182113,5.2126,191.85,191.75,1.04273274]
[1722261182408,65.0,191.84,191.75,5.215]
[1722261182811,5.212,191.87,191.74,0.34]
[1722261183004,26.16,191.91,191.78,5.2142]
[1722261183310,26.16,191.92,191.78,5.2142]
[1722261183691,26.16,191.92,191.79,1.0425967]
[1722261183907,15.68,191.91,191.79,1.0425967]
[1722261184115,15.68,191.91,191.77,0.17]
[1722261184412,5.2121,191.87,191.77,5.3845]
[1722261184594,5.2121,191.87,191.78,0.17]
[1722261184789,5.2115,191.89,191.78,0.17]
[1722261185114,15.68,191.88,191.73,15.3076]
[1722261185336,5.2125,191.85,191.73,15.3076]
[1722261185491,35.68,191.88,191.73,15.3076]
[1722261185693,5.2135,191.81,191.73,15.3076]
[1722261185907,35.68,191.88,191.73,15.3076]
[1722261186211,5.2127,191.84,191.75,5.215]
[1722261186518,5.2127,191.84,191.73,20.523]
[1722261187033,5.2138,191.8,191.73,15.3076]
[1722261187793,5.2134,191.81,191.73,16.35053615]
[1722261188010,39.1909,191.86,191.74,6.25813615]
[1722261188011,26.16,191.86,191.74,6.25813615]
[1722261188193,5.2127,191.84,191.75,5.215]
[1722261188399,65.0,191.85,191.76,5.2148]
[1722261188595,65.0,191.85,191.77,5.2144]
[1722261188792,5.2112,191.9,191.78,1.04262448]
[1722261188991,41.84,191.93,191.81,11.5467]
[1722261189189,5.211,191.9,191.81,6.3334]
[1722261189419,26.16,191.93,191.81,6.3334]
[1722261189831,5.2116,191.88,191.81,6.3334]
[1722261189996,5.2112,191.9,191.81,6.3334]
[1722261190318,45.0,191.89,191.81,6.3334]
[1722261190809,41.84,191.93,191.81,6.3334]
[1722261190810,5.2109,191.91,191.81,6.3334]
[1722261191012,26.16,191.96,191.82,1.04238301]
[1722261191315,5.215,191.98,191.83,1.38223037]
[1722261191498,5.2095,191.96,191.87,5.2118]
[1722261191698,5.2097,191.95,191.86,0.34]
[1722261192010,5.2094,191.96,191.87,0.34]
[1722261192398,5.2094,191.96,191.88,6.3692]
[1722261192600,5.2092,191.97,191.88,6.3692]
[1722261192996,5.215,191.98,191.88,6.3692]
[1722261193196,5.215,191.98,191.89,1.04205592]
[1722261193426,5.2099,191.94,191.88,6.3692]
[1722261193627,5.2108,191.91,191.88,6.3692]
[1722261194308,28.7037,191.96,191.88,6.3692]
[1722261194505,13.0256,191.93,191.84,15.6631]
[1722261194712,65.0,191.92,191.84,15.6631]
[1722261195041,5.2102,191.93,191.84,15.6631]
[1722261195231,5.215,191.98,191.84,15.6631]
[1722261195232,15.68,191.97,191.84,15.6631]
[1722261195401,15.68,191.95,191.84,15.6631]
[1722261195739,65.0,191.94,191.84,15.6631]
[1722261196108,5.2104,191.93,191.84,15.6631]
[1722261196347,5.2104,191.93,191.85,1.04228937]
[1722261196348,65.0,191.92,191.85,1.04228937]
[1722261196554,65.0,191.92,191.84,15.6631]
[1722261196755,65.0,191.92,191.84,20.8757]
[1722261197423,20.0,191.92,191.85,0.34]
[1722261197658,5.2099,191.94,191.85,5.5523]
[1722261197855,25.2103,191.93,191.85,0.34]
[1722261198358,45.0,191.92,191.84,15.6631]
[1722261198917,5.2113,191.89,191.84,15.6631]
[1722261199121,45.0,191.92,191.79,5.2137]
[1722261199122,5.2119,191.87,191.79,15.7567]
[1722261199354,5.2121,191.86,191.79,15.7567]
[1722261199562,28.7073,191.91,191.79,15.7567]
[1722261199867,80.68,191.9,191.79,15.7567]
[1722261200021,28.7092,191.88,191.79,15.7567]
[1722261200367,5.2124,191.85,191.79,15.7567]
[1722261200664,65.0,191.87,191.79,15.7567]
[1722261200665,5.2121,191.86,191.79,15.7567]
[1722261200864,70.2118,191.87,191.8,1.04269856]
[1722261201151,70.2118,191.87,191.79,15.7567]
[1722261201348,65.0,191.87,191.79,15.7567]
[1722261201561,5.2128,191.84,191.79,15.7567]
[1722261201716,65.0,191.87,191.79,16.79939819]
[1722261201921,70.2119,191.87,191.79,15.7567]
[1722261202121,20.0,191.87,191.79,20.9706]
[1722261202436,20.0,191.87,191.8,5.2137]
[1722261202634,35.68,191.92,191.8,5.2137]
[1722261202837,60.68,191.91,191.79,15.7567]
[1722261203134,15.68,191.86,191.74,16.6435]
[1722261203340,15.68,191.82,191.74,16.6435]
[1722261203526,5.2139,191.8,191.74,16.6435]
[1722261203729,20.0,191.79,191.74,16.6435]
[1722261203928,35.68,191.79,191.74,16.6435]
[1722261204133,35.68,191.79,191.7,6.0102]
[1722261204134,45.0,191.78,191.7,6.0102]
[1722261204758,50.2145,191.78,191.7,6.0102]
[1722261205236,5.2147,191.77,191.7,6.0102]
[1722261205433,45.0,191.76,191.7,6.0102]
[1722261206428,5.2154,191.74,191.7,6.0102]
[1722261206633,45.0,191.76,191.68,16.484]
[1722261206936,45.0,191.76,191.69,1.04323937]
[1722261207339,45.0,191.76,191.68,21.7008]
[1722261207340,45.0,191.76,191.68,16.484]
[1722261207647,50.215,191.76,191.68,16.484]
[1722261207846,45.0,191.76,191.68,16.484]
[1722261208048,45.0,191.77,191.68,16.484]
[1722261208252,20.0,191.76,191.68,16.484]
[1722261208855,20.0,191.77,191.68,16.484]
[1722261209230,5.2136,191.81,191.69,1.38307165]
[1722261209425,5.2136,191.81,191.71,5.2162]
[1722261209630,5.2138,191.8,191.69,5.5565]
[1722261209832,20.0,191.79,191.7,1.04300325]
[1722261210042,20.0,191.79,191.71,0.34]
[1722261210248,25.2141,191.79,191.71,0.34]
[1722261210537,5.2143,191.78,191.68,21.7007]
[1722261210747,5.2143,191.78,191.69,0.34]
[1722261211035,20.0,191.79,191.7,5.2164]
[1722261211230,20.0,191.79,191.69,1.3830015]
[1722261211442,15.68,191.86,191.69,46.38286028]
[1722261211443,20.0,191.85,191.69,46.38286028]
[1722261211679,5.2128,191.84,191.74,5.2152]
[1722261211972,15.68,191.86,191.73,0.34]
[1722261212556,15.68,191.86,191.73,0.17]
[1722261212840,28.7108,191.86,191.73,1.04298114]
[1722261213048,5.2135,191.81,191.7,5.2162]
[1722261213263,5.2135,191.81,191.71,5.2162]
[1722261213454,5.2137,191.8,191.71,5.2162]
[1722261213642,5.2134,191.82,191.71,5.2162]
[1722261213855,45.0,191.81,191.71,5.2162]
[1722261214066,45.0,191.81,191.72,1.38289816]
[1722261214243,50.2135,191.81,191.72,5.5558]
[1722261214760,45.0,191.81,191.73,1.04289838]
[1722261214965,50.2135,191.81,191.74,1.04289838]
[1722261215166,45.0,191.81,191.73,5.2156]
[1722261215669,50.2135,191.81,191.73,1.04289864]
[1722261215846,50.2135,191.81,191.74,1.04289882]
[1722261216045,50.2135,191.81,191.72,5.5558]
[1722261216251,45.0,191.81,191.73,5.2156]
[1722261216565,5.2135,191.81,191.72,5.5559]
[1722261216767,50.2132,191.82,191.72,5.5559]
[1722261216946,50.2132,191.82,191.73,5.2156]
[1722261217141,45.0,191.82,191.74,5.2153]
[1722261217347,45.0,191.82,191.72,0.34]
[1722261217348,50.2132,191.83,191.73,5.2155]
[1722261217657,20.0,191.82,191.74,5.2152]
[1722261217856,20.0,191.82,191.75,0.34]
[1722261218163,26.16,191.89,191.75,6.3837]
[1722261218351,15.68,191.88,191.76,1.04275588]
[1722261218551,15.68,191.87,191.77,16.51873401]
[1722261218747,5.2124,191.85,191.77,15.476]
[1722261218954,45.0,191.84,191.77,15.476]
[1722261219154,50.2126,191.84,191.77,15.476]
[1722261219448,45.0,191.84,191.77,15.476]
[1722261219860,45.0,191.85,191.77,15.476]
[1722261220054,50.2124,191.85,191.77,15.476]
[1722261220265,5.2126,191.84,191.77,15.476]
[1722261221070,50.2124,191.85,191.77,15.476]
[1722261221371,5.2127,191.84,191.77,15.476]
[1722261221880,50.2124,191.85,191.77,15.476]
[1722261222253,5.2127,191.84,191.78,1.04269205]
[1722261222583,50.2124,191.85,191.77,16.51871289]
[1722261222955,5.2126,191.84,191.77,15.476]
[1722261223566,5.2126,191.84,191.77,16.51869249]
[1722261224863,26.16,191.89,191.77,16.51869249]
[1722261225053,65.0,191.88,191.77,16.51869249]
[1722261225366,5.213,191.83,191.77,15.476]
[1722261225887,80.68,191.88,191.77,15.476]
[1722261226344,5.2128,191.84,191.77,15.476]
[1722261227372,5.2129,191.83,191.77,15.476]
[1722261228047,5.2126,191.84,191.77,15.476]
[1722261228667,26.16,191.83,191.73,15.2478]
[1722261228868,80.68,191.82,191.7,6.3749]
[1722261229066,5.2155,191.74,191.7,6.3749]
[1722261229262,5.2151,191.76,191.7,6.3749]
[1722261231080,5.216,191.72,191.65,6.8324212]
[1722261231280,45.0,191.71,191.65,6.8324212]
[1722261232371,50.2162,191.71,191.65,6.8324212]
[1722261232548,50.2162,191.71,191.65,7.87587404]
[1722261232962,50.2162,191.71,191.65,0.7862212]
[1722261233455,5.2165,191.7,191.65,0.7862212]
[1722261233654,45.0,191.71,191.65,0.7862212]
[1722261233871,50.2162,191.71,191.65,0.7862212]
[1722261234374,45.0,191.71,191.65,0.7862212]
[1722261234573,45.0,191.71,191.65,1.82969748]
[1722261234776,5.2157,191.73,191.65,0.7862212]
[1722261234978,5.2165,191.7,191.65,0.7862212]
[1722261235182,5.2166,191.7,191.65,0.7862212]
[1722261235662,26.16,191.73,191.65,0.7862212]
[1722261235861,5.2168,191.69,191.65,0.7862212]
[1722261236273,26.16,191.73,191.65,0.7862212]
[1722261236578,65.0,191.72,191.65,0.7862212]
[1722261236958,5.2167,191.69,191.65,0.7862212]
[1722261237155,5.2164,191.71,191.65,0.7862212]
[1722261237369,5.2173,191.67,191.65,0.7862212]
[1722261237589,20.0,191.7,191.65,0.7862212]
[1722261237766,20.0,191.72,191.65,0.7862212]
[1722261238081,20.0,191.72,191.65,1.82970506]
[1722261238382,45.0,191.71,191.65,1.82970506]
[1722261238582,20.0,191.7,191.65,1.82970506]
[1722261238776,20.0,191.7,191.65,0.7862212]
[1722261238978,26.16,191.79,191.65,0.7862212]
[1722261239291,5.215,191.76,191.65,7.0471008]